fUSD/lending_fUSD_20260321
["ID","MTS","AMOUNT","RATE_DAILY","PERIOD"]
[408664009,1774089032041,-332.34815221,9.499e-05,2]
[408664010,1774089032051,-500.0,9.499e-05,2]
[408664011,1774089032061,-410947.11101616,9.5e-05,3]
[408664012,1774089032072,-420.0,0.00010449,2]
[408664013,1774089032082,-432.0,0.00011494,2]
[408664014,1774089032093,-166.66,0.00013725,2]
[408664015,1774089032102,-11350.00421475,0.0001399,2]
[408664016,1774089032112,-166.66,0.00014014,2]
[408664017,1774089032122,-500.0,0.00014256,2]
[408664018,1774089032132,-166.66,0.00014303,2]
[408664019,1774089032141,-500.0,0.00014356,2]
[408664020,1774089032150,-500.0,0.00014356,2]
[408664021,1774089032160,-13568.7384,0.00014365,2]
[408664022,1774089032170,-150.0,0.00014448,2]
[408664023,1774089032179,-200.0,0.00014583,2]
[408664024,1774089032188,-150.99,0.00014592,2]
[408664025,1774089032199,-166.66,0.00014592,2]
[408664026,1774089032208,-166.66,0.00014881,2]
[408664027,1774089032218,-250.0,0.00015,2]
[408664028,1774089032227,-166.66,0.0001517,2]
[408664029,1774089032237,-187.16,0.00015304,2]
[408664030,1774089032246,-350.0,0.00015515,2]
[408664031,1774089032255,-200.0,0.000157,2]
[408664032,1774089032264,-1138.0,0.00015719,2]
[408664033,1774089032274,-500.0,0.00015726,2]
[408664034,1774089032283,-1138.0,0.00015728,2]
[408664035,1774089032293,-1138.0,0.0001575,2]
[408664036,1774089032301,-1186.436,0.00015799,2]
[408664037,1774089032311,-1138.0,0.00015821,2]
[408664038,1774089032320,-1138.0,0.00015848,2]
[408664039,1774089032330,-237.0,0.00015863,2]
[408664040,1774089032339,-2000.0,0.0001589,2]
[408664041,1774089032348,-5000.0,0.000159,2]
[408664042,1774089032358,-2500.0,0.000159,2]
[408664043,1774089032368,-1138.0,0.00015905,2]
[408664044,1774089032377,-1138.0,0.00015916,2]
[408664045,1774089032386,-1261.0,0.0001599,2]
[408664046,1774089032396,-150.0676718,0.00015999,2]
[408664047,1774089032405,-18949.7032046,0.00015999,2]
[408664048,1774089032415,-2760.1462188,0.00015999,2]
[408664049,1774089032424,-155.51,0.00015999,2]
[408664050,1774089032434,-5314.8857614,0.00015999,2]
[408664051,1774089032443,-234.71,0.00015999,2]
[408664052,1774089032453,-500.0,0.00015999,2]
[408664053,1774089032462,-642.51248608,0.00015999,2]
[408664054,1774089032471,-348.46868281,0.00015999,2]
[408664055,1774089032483,-1670.0,0.00016,5]
[408664056,1774089032492,-1334.0,0.00016,5]
[408664057,1774089032502,-25857.04271126,0.00016,2]
[408664058,1774089032514,-5707.44945277,0.00016,2]
[408664256,1774089040221,-500.0,9.499e-05,2]
[408664258,1774089040231,-500.0,9.499e-05,2]
[408664260,1774089040241,-500.0,9.499e-05,2]
[408664262,1774089040250,-2497713.57305413,0.00016,2]
[408664291,1774089040756,-900.0,0.00016,2]
[408664376,1774089045884,-1183.72033041,0.00016,2]
[408664377,1774089046203,-9664.25934027,0.00016,2]
[408664378,1774089046214,-15482.7328,0.00016,2]
[408664379,1774089046226,-1000.2788971,0.00016,2]
[408664392,1774089360451,200.0,4.128e-05,2]
[408664393,1774089360856,200.0,8.006e-05,2]
[408664394,1774090168108,-176.25498991,0.00011696,2]
[408664395,1774090168129,-250.0,0.00011745,2]
[408664396,1774090168149,-208.84160071,0.00011745,2]
[408664397,1774090168169,-2428.06746782,0.00011793,2]
[408664400,1774090232130,-247.0,0.00011793,2]
[408664401,1774090232139,-1232.42,0.00011793,2]
[408664402,1774090232185,-600.09467,0.00011793,2]
[408664403,1774090232197,-739.41786218,0.00011793,2]
[408664404,1774090232206,-250.0,0.00011797,2]
[408664405,1774090232215,-439.78,0.000118,3]
[408664406,1774090232230,-300.0,0.00011833,2]
[408664407,1774090232239,-1200.0,0.00011833,2]
[408664408,1774090232250,-440.79489927,0.00011834,2]
[408664413,1774090238267,-540.49052912,0.00011834,2]
[408664414,1774090238278,-841.57081409,0.00011834,2]
[408664415,1774090238322,-351.44478466,0.00011834,2]
[408664416,1774090238333,-531.13294994,0.00011834,2]
[408664417,1774090238377,-2027.42760257,0.00011834,2]
[408664418,1774090238388,-267.13842035,0.00011834,2]
[408664419,1774090238397,-5000.0,0.00011834,2]
[408664434,1774090238561,-863.22677501,0.00011834,2]
[408664436,1774090238571,-273.12,0.00011891,2]
[408664438,1774090238581,-250.0,0.00012866,2]
[408664439,1774090238590,-193.0,0.00012866,2]
[408664440,1774090238600,-150.0,0.00012969,2]
[408664441,1774090238609,-5000.0,0.0001297,2]
[408664442,1774090238619,-250.0,0.00012973,2]
[408664443,1774090238629,-810.0,0.00013016,2]
[408664444,1774090238638,-233.2717985,0.00013044,2]
[408664445,1774090238647,-378.4,0.00013093,2]
[408664446,1774090238657,-10000.0,0.00013456,2]
[408664447,1774090238666,-369.0,0.00013661,2]
[408664448,1774090238676,-160.66,0.00013699,2]
[408664449,1774090238686,-259.92,0.00013872,2]
[408664450,1774090238696,-547.72,0.00013872,2]
[408664451,1774090238707,-500.0,0.00014164,2]
[408664452,1774090238716,-162.353,0.00014199,2]
[408664453,1774090238725,-1784.663,0.00014199,2]
[408664454,1774090238734,-1076.50370305,0.000142,2]
[408664455,1774090238743,-2672.73986403,0.000142,2]
[408664456,1774090238752,-2704.8110956,0.000142,2]
[408664457,1774090238761,-2963.14809509,0.000142,2]
[408664458,1774090238770,-2446.47409619,0.000142,2]
[408664459,1774090238779,-151.70003036,0.000142,2]
[408664460,1774090238789,-154.50737342,0.000142,2]
[408664461,1774090238798,-250.32035532,0.00014203,2]
[408664462,1774090238807,-1674.3794166,0.00014265,2]
[408664463,1774090238817,-500.0,0.00014356,2]
[408664464,1774090238826,-500.0,0.00014356,2]
[408664465,1774090238835,-151.0,0.00014357,2]
[408664466,1774090238845,-151.0,0.00014357,2]
[408664467,1774090238855,-151.0,0.00014357,2]
[408664468,1774090238864,-151.0,0.00014357,2]
[408664469,1774090238874,-151.0,0.00014357,2]
[408664470,1774090238883,-500.0,0.00014364,2]
[408664471,1774090238893,-203.59423913,0.00014364,2]
[408664472,1774090238903,-347.34969635,0.00014364,2]
[408664473,1774090238912,-158514.44779728,0.00014365,2]
[408664474,1774090238925,-1128.25873982,0.00014365,2]
[408664475,1774090238936,-1931738.16591098,0.00014365,2]
[408664477,1774090240323,-406323.13545192,0.00014365,2]
[408664478,1774090240334,-455.06,0.000144,2]
[408664479,1774090240343,-876.07,0.000144,2]
[408664480,1774090240353,-368.34,0.000144,2]
[408664481,1774090240362,-1342.36,0.000144,2]
[408664482,1774090240371,-621.66,0.000144,2]
[408664483,1774090240380,-500.0,0.000144,2]
[408664484,1774090240390,-1674.37941659,0.00014447,2]
[408664485,1774090240399,-9999.99,0.00014504,2]
[408664486,1774090240408,-29759.28,0.00014504,2]
[408664487,1774090240418,-545.11,0.00014504,2]
[408664488,1774090240427,-9456.43,0.00014504,2]
[408664489,1774090240436,-1264.02,0.00014504,2]
[408664490,1774090240446,-79311.07,0.00014504,2]
[408664491,1774090240455,-5365.66,0.00014504,2]
[408664492,1774090240464,-499.99,0.00014504,2]
[408664493,1774090240474,-299.99,0.00014504,2]
[408664494,1774090240483,-9999.99,0.00014504,2]
[408664495,1774090240492,-1674.37941659,0.00014628,2]
[408664496,1774090240502,-167.37,0.00014761,2]
[408664497,1774090240511,-1674.37941659,0.0001481,2]
[408664498,1774090240522,-16055.63,0.00014818,2]
[408664499,1774090240531,-1674.37941659,0.00014992,2]
[408664500,1774090240542,-500.0,0.00015097,2]
[408664501,1774090240552,-1674.37941659,0.00015173,2]
[408664502,1774090240562,-1674.37941659,0.00015355,2]
[408664503,1774090240571,-839.23,0.00015507,2]
[408664504,1774090240581,-1674.37941659,0.00015537,2]
[408664505,1774090240590,-1674.37941659,0.00015718,2]
[408664506,1774090240600,-500.0,0.00015726,2]
[408664507,1774090240609,-993.0,0.00015814,2]
[408664508,1774090240619,-1007.0,0.00015834,2]
[408664509,1774090240629,-839.23,0.00015895,2]
[408664510,1774090240639,-1674.37941659,0.000159,2]
[408664511,1774090240649,-1066.0,0.000159,5]
[408664512,1774090240658,-857.0,0.000159,5]
[408664513,1774090240668,-500.0,0.00015973,2]
[408664514,1774090240677,-500.0,0.00015973,2]
[408664515,1774090240686,-500.0,0.00015973,2]
[408664516,1774090240696,-500.0,0.00015973,2]
[408664517,1774090240705,-4062.8725608,0.00015985,2]
[408664518,1774090240715,-1450.5238919,0.00015989,2]
[408664519,1774090240724,-2466.0,0.0001599,2]
[408664520,1774090240733,-1215.0,0.0001599,2]
[408664521,1774090240742,-237.54983991,0.00015999,2]
[408664522,1774090240752,-1891399.59656029,0.00016,2]
[408664530,1774090243158,-1189.45646289,0.00016,2]
[408664538,1774090246096,-1571.5705,0.00016,2]
[408664543,1774090297908,-500.0,0.00014356,2]
[408664544,1774090297932,-500.0,0.00014356,2]
[408664545,1774090297954,-237.54983991,0.00014364,2]
[408664546,1774090297977,-300.0,0.00015128,2]
[408664547,1774090318842,-160.0,0.0001565,2]
[408664548,1774090325901,5962.45016009,0.00014264,2]
[408664550,1774091351132,-166.66,0.00012934,2]
[408664551,1774091351153,-168.20402251,0.0001299,2]
[408664552,1774091351174,-71.83597749,0.00013206,2]
[408664553,1774091432221,-94.82402251,0.00013206,2]
[408664554,1774091432230,-166.66,0.00013479,2]
[408664555,1774091432240,-291.69,0.00013733,2]
[408664556,1774091432249,-166.66,0.00013751,2]
[408664557,1774091432259,-728.17,0.00013914,2]
[408664558,1774091432273,-185.21306351,0.00013923,2]
[408664559,1774091432283,-166.66,0.00014023,2]
[408664560,1774091432294,-300.0,0.00014155,2]
[408664561,1774091432304,-1200.0,0.00014155,2]
[408664562,1774091432314,-3547.84935985,0.00014156,2]
[408664563,1774091432329,-452.57988533,0.00014156,2]
[408664564,1774091432340,-2197.44542702,0.00014156,2]
[408664565,1774091432384,-31041.7666278,0.00014156,2]
[408664566,1774091432394,-150.0,0.00014163,2]
[408664567,1774091432404,-17627.9438,0.00014164,2]
[408664568,1774091432414,-7500.2717443,0.00014173,2]
[408664569,1774091432424,-300.0,0.00014228,2]
[408664570,1774091432433,-150.0,0.00014256,2]
[408664571,1774091432443,-3208.16982929,0.00014256,2]
[408664572,1774091432453,-44185.6069637,0.00014256,2]
[408664573,1774091432463,-150.0,0.00014263,14]
[408664574,1774091432473,-500.0,0.00014263,2]
[408664575,1774091432483,-535.77181078,0.00014273,2]
[408664577,1774091432493,-500.0,0.00014273,2]
[408664579,1774091432503,-501.12763148,0.00014273,2]
[408664581,1774091432512,-167.44290588,0.00014273,2]
[408664583,1774091432521,-300.0,0.00014289,2]
[408664585,1774091432530,-166.66,0.00014296,2]
[408664586,1774091432540,-500.0,0.00014356,2]
[408664588,1774091432549,-500.0,0.00014356,2]
[408664591,1774091432559,-500.0,0.00014356,2]
[408664592,1774091432568,-1264.02,0.00014356,2]
[408664593,1774091432579,-9456.43,0.00014356,2]
[408664594,1774091432597,-999.99,0.00014356,2]
[408664595,1774091432607,-545.11,0.00014356,2]
[408664596,1774091432616,-5365.66,0.00014356,2]
[408664597,1774091432626,-9999.99,0.00014356,2]
[408664598,1774091432636,-1189.17,0.00014356,2]
[408664599,1774091432645,-29759.28,0.00014356,2]
[408664600,1774091432655,-9999.99,0.00014356,2]
[408664601,1774091432665,-58731.62307314,0.00014356,2]
[408664602,1774091432677,-1405.71038665,0.00014356,2]
[408664603,1774091432700,-12112.35474603,0.00014356,2]
[408664608,1774091439144,-7061.38179418,0.00014356,2]
[408664609,1774091439155,-150.99,0.00014356,2]
[408664610,1774091439168,-299.99,0.00014356,2]
[408664611,1774091439178,-2994.93,0.00014356,2]
[408664612,1774091439187,-499.99,0.00014356,2]
[408664613,1774091439197,-7500.27174424,0.00014365,2]
[408664614,1774091439206,-500.0,0.00014373,2]
[408664615,1774091439216,-500.0,0.00014373,2]
[408664616,1774091439227,-500.0,0.00014373,2]
[408664617,1774091439237,-164.16483154,0.00014373,2]
[408664618,1774091439247,-500.28869856,0.00014373,2]
[408664619,1774091439258,-501.37819761,0.00014373,2]
[408664620,1774091439268,-504.9390148,0.00014373,2]
[408664621,1774091439279,-167.39573257,0.00014373,2]
[408664622,1774091439288,-500.0,0.00014373,2]
[408664623,1774091439297,-500.0,0.00014373,2]
[408664624,1774091439306,-501.05441945,0.00014373,2]
[408664625,1774091439315,-500.0,0.00014373,2]
[408664626,1774091439324,-300.16843031,0.00014373,2]
[408664627,1774091439335,-502.28312036,0.00014373,2]
[408664628,1774091439345,-500.0,0.00014373,2]
[408664629,1774091439355,-501.00729745,0.00014373,2]
[408664630,1774091439364,-167.35705034,0.00014373,2]
[408664631,1774091439374,-500.31630728,0.00014373,2]
[408664632,1774091439383,-500.0,0.00014373,2]
[408664633,1774091439397,-291.69,0.00014419,2]
[408664634,1774091439407,-3208.16982927,0.00014439,2]
[408664635,1774091439416,-200.0,0.00014497,2]
[408664636,1774091439425,-200.0,0.00014508,2]
[408664637,1774091439437,-7500.27174424,0.00014557,2]
[408664638,1774091439449,-483.14869014,0.00014605,2]
[408664639,1774091439457,-3208.16982927,0.00014621,2]
[408664640,1774091439466,-500.86186556,0.00014706,2]
[408664641,1774091439475,-7500.27174424,0.00014749,2]
[408664642,1774091439484,-3208.16982927,0.00014804,2]
[408664643,1774091439494,-1000.0,0.00014921,2]
[408664644,1774091439504,-1000.0,0.00014921,2]
[408664645,1774091439514,-7500.27174424,0.00014941,2]
[408664646,1774091439523,-3208.16982927,0.00014987,2]
[408664647,1774091439533,-150.0,0.00015022,2]
[408664648,1774091439546,-209.54298795,0.00015022,2]
[408664649,1774091439555,-150.0,0.00015022,2]
[408664650,1774091439564,-500.0,0.00015022,2]
[408664651,1774091439573,-500.0,0.00015022,2]
[408664652,1774091439583,-500.0,0.00015022,2]
[408664653,1774091439592,-500.0,0.00015022,2]
[408664654,1774091439602,-500.0,0.00015022,2]
[408664655,1774091439611,-500.0,0.00015022,2]
[408664656,1774091439620,-500.0,0.00015022,2]
[408664657,1774091439631,-500.0,0.00015022,2]
[408664658,1774091439640,-783.0,0.00015068,2]
[408664659,1774091439649,-783.0,0.00015073,2]
[408664660,1774091439659,-291.69,0.00015106,2]
[408664661,1774091439669,-783.0,0.00015127,2]
[408664662,1774091439679,-7500.27174424,0.00015132,2]
[408664663,1774091439692,-783.0,0.00015136,2]
[408664664,1774091439702,-3208.16982927,0.00015169,2]
[408664665,1774091439712,-500.0,0.00015205,2]
[408664666,1774091439723,-783.0,0.00015233,2]
[408664667,1774091439734,-210.0,0.00015282,2]
[408664668,1774091439744,-150.0,0.00015312,2]
[408664669,1774091439753,-7500.27174424,0.00015324,2]
[408664670,1774091439766,-3208.16982927,0.00015352,2]
[408664671,1774091439775,-783.0,0.00015365,2]
[408664672,1774091439785,-1500.0,0.00015468,2]
[408664673,1774091439795,-1500.0,0.00015468,2]
[408664674,1774091439804,-783.0,0.00015473,2]
[408664675,1774091439814,-7500.27174424,0.00015516,2]
[408664676,1774091439823,-3208.16982927,0.00015535,2]
[408664677,1774091439833,-783.0,0.00015569,2]
[408664678,1774091439842,-783.0,0.0001562,2]
[408664679,1774091439853,-783.0,0.00015662,2]
[408664680,1774091439863,-1258.97084529,0.0001568,2]
[408664681,1774091439873,-487.176827,0.0001568,7]
[408664682,1774091439882,-320.579483,0.0001568,7]
[408664683,1774091439891,-206.809508,0.0001568,7]
[408664684,1774091439901,-1000.0,0.00015704,2]
[408664685,1774091439910,-7500.27174424,0.00015708,2]
[408664686,1774091439919,-2466.0,0.00015711,2]
[408664687,1774091439929,-3183.472,0.00015711,2]
[408664688,1774091439941,-3208.16982927,0.00015717,2]
[408664689,1774091439951,-158.12529989,0.00015721,2]
[408664690,1774091439961,-500.0,0.00015726,2]
[408664691,1774091439970,-500.0,0.00015726,2]
[408664692,1774091439979,-783.0,0.00015749,2]
[408664693,1774091439989,-1000.0,0.00015765,2]
[408664694,1774091439999,-179.81685591,0.00015776,2]
[408664695,1774091440008,-350.0,0.00015778,2]
[408664696,1774091440018,-1000.0,0.00015784,2]
[408664697,1774091440028,-291.69,0.00015793,2]
[408664698,1774091440037,-179.81685588,0.00015797,2]
[408664699,1774091440046,-2402.311,0.00015799,2]
[408664700,1774091440056,-245.509,0.00015799,2]
[408664701,1774091440066,-167.98324409,0.000158,2]
[408664702,1774091440075,-212.56600817,0.000158,2]
[408664703,1774091440085,-229.4207666,0.000158,2]
[408664704,1774091440095,-257.14877225,0.000158,2]
[408664705,1774091440104,-448.78266576,0.000158,2]
[408664706,1774091440113,-179.81685588,0.00015817,2]
[408664707,1774091440122,-179.81685588,0.00015838,2]
[408664708,1774091440131,-448.78266576,0.0001585,2]
[408664709,1774091440140,-179.81685588,0.00015859,2]
[408664710,1774091440151,-500.5356408,0.00015873,2]
[408664711,1774091440161,-501.53205621,0.00015873,2]
[408664712,1774091440171,-500.19221246,0.00015873,2]
[408664713,1774091440182,-500.0,0.00015873,2]
[408664714,1774091440192,-210.78762468,0.00015873,2]
[408664715,1774091440203,-500.0,0.00015873,2]
[408664716,1774091440215,-322.0,0.00015873,2]
[408664717,1774091440225,-500.0,0.00015875,2]
[408664718,1774091440236,-259.71553871,0.00015875,2]
[408664719,1774091440246,-500.0,0.00015875,2]
[408664720,1774091440256,-243.14478744,0.00015875,2]
[408664721,1774091440265,-4331.3079038,0.00015876,2]
[408664722,1774091440274,-162884.23946672,0.00015876,2]
[408664726,1774091440767,-3648.431529,0.00015876,2]
[408664727,1774091440779,-3341.81293613,0.00015876,2]
[408664728,1774091440900,-66881.48630651,0.00015876,2]
[408664729,1774091440916,-260828.71241584,0.00015876,2]
[408664730,1774091440925,-10113.190334,0.00015876,2]
[408664731,1774091440935,-1108.827919,0.00015876,2]
[408664732,1774091440945,-179.81685588,0.00015879,2]
[408664733,1774091440955,-783.0,0.00015881,2]
[408664734,1774091440964,-2000.0,0.0001589,2]
[408664735,1774091440973,-1024.10847206,0.00015893,2]
[408664736,1774091440983,-155.0,0.00015899,2]
[408664737,1774091440992,-546994.9432,0.000159,2]
[408664738,1774091441001,-151.0,0.000159,2]
[408664739,1774091441010,-151.0,0.000159,2]
[408664740,1774091441020,-151.0,0.000159,2]
[408664741,1774091441030,-151.0,0.000159,2]
[408664742,1774091441039,-151.0,0.000159,2]
[408664743,1774091441048,-151.0,0.000159,2]
[408664744,1774091441058,-151.0,0.000159,2]
[408664745,1774091441067,-167.964343,0.000159,2]
[408664746,1774091441077,-358.12750716,0.000159,3]
[408664747,1774091441087,-151.0,0.000159,2]
[408664748,1774091441096,-151.0,0.000159,2]
[408664749,1774091441106,-151.0,0.000159,2]
[408664750,1774091441115,-430.445585,0.000159,2]
[408664751,1774091441125,-430.445585,0.000159,2]
[408664752,1774091441134,-430.445585,0.000159,2]
[408664754,1774091441144,-430.445585,0.000159,2]
[408664755,1774091441153,-151.0,0.000159,2]
[408664756,1774091441162,-151.0,0.000159,2]
[408664757,1774091441171,-203.302576,0.000159,2]
[408664758,1774091441181,-157.353985,0.000159,2]
[408664759,1774091441190,-157.353985,0.000159,2]
[408664760,1774091441199,-157.353985,0.000159,2]
[408664761,1774091441209,-157.353985,0.000159,2]
[408664762,1774091441218,-448.78266576,0.000159,2]
[408664763,1774091441228,-351.045758,0.000159,2]
[408664764,1774091441237,-281.246868,0.000159,2]
[408664765,1774091441247,-1972.079833,0.000159,2]
[408664766,1774091441256,-281.246868,0.000159,2]
[408664767,1774091441265,-1972.079833,0.000159,2]
[408664768,1774091441275,-281.246868,0.000159,2]
[408664769,1774091441284,-1972.079833,0.000159,2]
[408664770,1774091441294,-281.246868,0.000159,2]
[408664771,1774091441304,-1972.079833,0.000159,2]
[408664772,1774091441313,-151.0,0.000159,2]
[408664773,1774091441323,-151.0,0.000159,2]
[408664774,1774091441333,-179.81685588,0.000159,2]
[408664775,1774091441343,-7500.27174424,0.000159,2]
[408664776,1774091441352,-1158.862358,0.000159,2]
[408664777,1774091441362,-2350.238588,0.000159,2]
[408664778,1774091441371,-1158.862358,0.000159,2]
[408664779,1774091441381,-2350.238588,0.000159,2]
[408664780,1774091441391,-1158.862358,0.000159,2]
[408664781,1774091441400,-2350.238588,0.000159,2]
[408664782,1774091441410,-1158.862358,0.000159,2]
[408664783,1774091441419,-2350.238588,0.000159,2]
[408664784,1774091441429,-3208.16982927,0.000159,2]
[408664785,1774091441439,-522.23861446,0.000159,2]
[408664786,1774091441448,-1303.40043052,0.000159,2]
[408664787,1774091441458,-947.14397972,0.000159,2]
[408664788,1774091441467,-1545.0,0.000159,5]
[408664789,1774091441477,-1234.0,0.000159,5]
[408664790,1774091441486,-1000.0,0.00015943,2]
[408664791,1774091441496,-1962.81419762,0.00015956,2]
[408664792,1774091441505,-783.0,0.00015967,2]
[408664793,1774091441515,-166.83,0.0001597,2]
[408664794,1774091441525,-151.0,0.00015973,2]
[408664795,1774091441534,-151.0,0.00015973,2]
[408664796,1774091441544,-151.0,0.00015973,2]
[408664797,1774091441553,-151.0,0.00015973,2]
[408664798,1774091441563,-151.0,0.00015973,2]
[408664799,1774091441572,-151.0,0.00015973,2]
[408664800,1774091441582,-240.2370146,0.00015973,2]
[408664801,1774091441591,-4085.0,0.00015973,2]
[408664802,1774091441601,-783.0,0.00015983,2]
[408664803,1774091441611,-783.0,0.00015989,2]
[408664804,1774091441620,-1044.0,0.0001599,2]
[408664805,1774091441630,-621.696,0.0001599,2]
[408664806,1774091441639,-3513.0,0.0001599,2]
[408664807,1774091441649,-150.0,0.0001599,2]
[408664808,1774091441658,-1264.805,0.0001599,2]
[408664809,1774091441667,-3375986.18724082,0.00016,2]
[408664815,1774091443347,-417.81550229,0.00014606,2]
[408664816,1774091443356,-2315.50193587,0.00016,2]
[408664826,1774091446231,-223.54719898,0.000159,2]
[408664827,1774091446241,-376.45280102,0.00016,2]
[408664828,1774091446252,-173122.63471504,0.00016,2]
[408664829,1774091446263,-1247.15575498,0.00016,2]
[408664830,1774091446338,-1.31176285,0.00016,2]
[408664831,1774091446502,-1357.8,0.00016,2]
[408664834,1774091664880,-160.0,0.00013964,2]
[408664845,1774092631434,-1200.0,9.499e-05,2]
[408664846,1774092631444,-90493.84684961,9.5e-05,3]
[408664847,1774092631489,-7153.26184371,9.5e-05,3]
[408664848,1774092631545,-1326.56842302,9.5e-05,3]
[408664849,1774092631556,-405.23147994,9.5e-05,3]
[408664851,1774092637740,-1343.44849106,9.5e-05,3]
[408664857,1774092640238,-72400.2776277,9.5e-05,3]
[408664859,1774092640248,-1680.0,0.00010449,2]
[408664860,1774092640257,-170.56,0.00010662,2]
[408664861,1774092640267,-198.0,0.00011494,2]
[408664862,1774092640276,-262.14,0.00011507,2]
[408664863,1774092640287,-250.0,0.00011728,2]
[408664864,1774092640299,-5000.0,0.00011728,2]
[408664865,1774092640309,-1500.0,0.00013173,2]
[408664866,1774092640319,-500.0,0.00013339,2]
[408664867,1774092640328,-2889.52,0.00013391,2]
[408664868,1774092640338,-208.15,0.00013418,2]
[408664869,1774092640348,-1300.0,0.000138,5]
[408664870,1774092640357,-500.0,0.00013855,2]
[408664871,1774092640366,-319.54507241,0.00013855,2]
[408664872,1774092640375,-207.09154212,0.00013855,2]
[408664873,1774092640384,-424.55058471,0.00013855,2]
[408664874,1774092640403,-500.0,0.00013855,2]
[408664875,1774092640414,-500.0,0.00013855,2]
[408664876,1774092640423,-500.0,0.00013855,2]
[408664877,1774092640433,-500.0,0.00013855,2]
[408664878,1774092640443,-500.0,0.00013855,2]
[408664879,1774092640452,-500.0,0.00013855,2]
[408664880,1774092640461,-684526.7341,0.00013856,2]
[408664881,1774092640471,-500.0,0.00013864,2]
[408664882,1774092640480,-794.7335997,0.000139,2]
[408664883,1774092640489,-2140.64245519,0.000139,2]
[408664884,1774092640499,-1779.04650311,0.000139,2]
[408664885,1774092640508,-1959.84447911,0.000139,2]
[408664886,1774092640518,-1912.90545212,0.000139,2]
[408664887,1774092640529,-151.91408992,0.000139,2]
[408664888,1774092640539,-155.98086631,0.000139,2]
[408664889,1774092640548,-155.07312044,0.000139,2]
[408664890,1774092640558,-2700.0,0.000139,5]
[408664891,1774092640568,-2265.94,0.00013956,2]
[408664892,1774092640577,-9999.99,0.00013956,2]
[408664893,1774092640587,-4999.99,0.00013956,2]
[408664894,1774092640596,-5495.4584,0.00013956,2]
[408664895,1774092640607,-320.81698299,0.00013964,2]
[408664896,1774092640616,-10010.06279396,0.00013964,2]
[408664897,1774092640626,-179.81685588,0.00013964,2]
[408664898,1774092640635,-365.58856453,0.00013964,2]
[408664899,1774092640649,-1001.50433704,0.00014053,2]
[408664900,1774092640658,-1000.0,0.00014055,2]
[408664901,1774092640667,-500.0,0.00014056,2]
[408664902,1774092640677,-1921.848,0.00014056,2]
[408664903,1774092640687,-826.37,0.00014056,2]
[408664904,1774092640697,-151.0,0.00014056,2]
[408664905,1774092640707,-151.0,0.00014056,2]
[408664906,1774092640716,-151.0,0.00014056,2]
[408664907,1774092640726,-151.0,0.00014056,2]
[408664908,1774092640735,-151.0,0.00014056,2]
[408664909,1774092640745,-151.0,0.00014056,2]
[408664910,1774092640754,-151.0,0.00014056,2]
[408664911,1774092640763,-151.0,0.00014056,2]
[408664912,1774092640773,-151.0,0.00014056,2]
[408664913,1774092640783,-151.0,0.00014056,2]
[408664914,1774092640792,-151.0,0.00014056,2]
[408664915,1774092640801,-151.0,0.00014056,2]
[408664916,1774092640810,-151.0,0.00014056,2]
[408664917,1774092640819,-151.0,0.00014056,2]
[408664918,1774092640830,-151.0,0.00014056,2]
[408664919,1774092640840,-151.0,0.00014056,2]
[408664920,1774092640849,-151.0,0.00014056,2]
[408664921,1774092640859,-151.0,0.00014056,2]
[408664922,1774092640869,-151.0,0.00014056,2]
[408664923,1774092640886,-151.0,0.00014056,2]